bitfinex/quotes_SOLUSD_20240606
["timestamp","ask_amount","ask_price","bid_price","bid_amount"]
[1717689931585,2.1381,173.05,173.02,6.47]
[1717689931882,2.1382,173.04,173.0,6.47]
[1717689932578,2.1383,173.03,173.0,6.47]
[1717689932788,2.1383,173.03,172.99,6.47]
[1717689934281,47.1382,173.04,172.99,6.47]
[1717689934478,2.1382,173.04,173.0,6.47]
[1717689934659,45.0,173.03,173.0,6.47]
[1717689934866,2.1382,173.04,173.0,6.47]
[1717689935288,2.1382,173.04,172.91,126.3916]
[1717689935576,2.1383,173.03,172.98,6.47]
[1717689935756,2.1383,173.04,172.99,6.47]
[1717689936612,2.1383,173.03,172.99,6.47]
[1717689936778,2.1383,173.03,172.98,6.47]
[1717689937576,2.1382,173.04,172.98,6.47]
[1717689937783,2.1382,173.04,172.99,6.47]
[1717689938874,2.1382,173.04,172.92,0.34]
[1717689939075,2.1382,173.04,173.0,6.47]
[1717689939999,47.1381,173.05,173.0,6.47]
[1717689940371,2.1382,173.04,173.0,6.47]
[1717689940879,47.1381,173.05,173.0,6.47]
[1717689941190,45.0,173.04,173.0,6.47]
[1717689941387,2.1381,173.05,173.0,6.47]
[1717689942794,2.1382,173.04,172.93,120.0]
[1717689942978,2.1382,173.04,173.0,6.47]
[1717689943178,2.1381,173.05,173.0,6.47]
[1717689943380,2.1381,173.05,173.01,6.47]
[1717689943726,2.1381,173.05,173.02,6.47]
[1717689944280,2.1381,173.05,173.03,6.47]
[1717689945996,51.0318878,173.06,173.03,6.47]
[1717689946383,51.0318878,173.06,172.97,126.0651]
[1717689946586,51.0318878,173.06,173.03,6.47]
[1717689948398,53.1697878,173.06,173.03,6.47]
[1717689949404,51.0318878,173.06,173.03,6.47]
[1717689952314,51.0318878,173.06,172.97,6.0651]
[1717689952498,2.1381,173.05,172.97,6.0651]
[1717689952726,2.1382,173.04,173.0,6.47]
[1717689953252,2.1381,173.05,173.0,6.47]
[1717689954903,59.6398878,173.06,173.0,6.47]
[1717689955201,53.1698878,173.06,173.0,6.47]
[1717689957295,53.1698878,173.06,173.01,6.47]
[1717689957609,47.138,173.06,173.01,6.47]
[1717689957907,2.138,173.06,173.01,6.47]
[1717689958206,2.138,173.06,173.02,6.47]
[1717689959399,2.138,173.06,173.01,6.47]
[1717689959703,2.138,173.06,173.02,6.47]
[1717689960398,8.16943968,173.06,173.02,6.47]
[1717689960594,47.1381,173.05,172.97,6.0651]
[1717689961208,47.1381,173.05,173.01,6.47]
[1717689961703,45.0,173.05,173.01,6.47]
[1717689961916,45.0,173.05,173.02,6.47]
[1717689962284,45.0,173.05,172.98,6.47]
[1717689962487,45.0,173.05,173.03,6.47]
[1717689964622,2.1375,173.1,173.04,6.47]
[1717689964820,2.1375,173.1,173.06,6.47]
[1717689965320,2.1376,173.09,173.05,6.47]
[1717689965689,4.275,173.1,172.97,6.0651]
[1717689965886,4.275,173.1,173.02,6.47]
[1717689965887,2.1379,173.07,173.02,6.47]
[1717689966242,2.1381,173.05,173.01,6.47]
[1717689966403,2.1381,173.05,173.0,6.47]
[1717689967512,51.47,173.06,173.0,6.47]
[1717689967513,53.608,173.06,173.0,6.47]
[1717689968013,2.1381,173.05,173.0,6.47]
[1717689968625,2.1381,173.05,172.97,6.0651]
[1717689968912,2.1381,173.05,173.0,6.47]
[1717689969410,51.47,173.06,172.93,120.0]
[1717689969411,45.0,173.06,172.93,120.0]
[1717689969628,45.0,173.06,172.98,6.47]
[1717689969629,2.1383,173.04,172.98,6.47]
[1717689969916,2.1383,173.03,172.93,120.0]
[1717689970145,45.0,173.03,172.97,6.47]
[1717689970500,45.0,173.03,172.98,6.47]
[1717689971020,45.0,173.03,172.94,20.0]
[1717689971323,47.1383,173.03,172.98,6.47]
[1717689971925,47.1383,173.03,172.97,6.47]
[1717689972127,45.0,173.03,173.02,6.47]
[1717689972327,45.0,173.03,172.95,120.0]
[1717689972509,45.0,173.03,172.96,20.0]
[1717689972707,45.0,173.03,172.94,20.17]
[1717689972953,47.1382,173.04,172.94,20.17]
[1717689973320,45.0,173.04,172.98,6.47]
[1717689974046,45.0,173.04,172.99,6.47]
[1717689974238,51.6184,173.04,172.99,6.47]
[1717689974411,51.6184,173.04,172.98,6.47]
[1717689974710,51.6184,173.04,172.94,20.0]
[1717689974907,60.2266,173.04,172.98,6.47]
[1717689975113,58.0884,173.04,172.94,20.0]
[1717689975310,2.1385,173.02,172.97,6.47]
[1717689975523,2.1385,173.02,172.93,20.0]
[1717689975524,47.1385,173.02,172.93,20.0]
[1717689975730,53.6799,173.02,172.97,6.47]
[1717689976029,53.6799,173.02,172.96,6.47]
[1717689976836,2.1386,173.01,172.9,2.0]
[1717689977036,2.1388,173.0,172.94,6.47]
[1717689977216,45.0,173.0,172.94,6.47]
[1717689977541,47.1387,173.0,172.94,6.47]
[1717689977738,45.0,173.0,172.94,6.47]
[1717689978128,8.6088,172.99,172.9,2.0]
[1717689978428,45.0,172.98,172.93,6.47]
[1717689978933,45.0,172.98,172.9,2.0]
[1717689979737,45.0,172.98,172.93,6.47]
[1717689979940,53.5111,172.99,172.94,6.47]
[1717689980548,53.5111,172.99,172.93,6.47]
[1717689980913,53.5111,172.99,172.9,2.0]
[1717689981228,53.5111,172.99,172.94,6.47]
[1717689981430,51.3723,172.99,172.94,6.47]
[1717689983043,45.0,172.99,172.9,2.0]
[1717689983418,45.0,172.99,172.96,6.47]
[1717689984427,45.0,172.99,172.95,6.47]
[1717689984628,53.5965,173.0,172.95,6.47]
[1717689984830,6.4578,172.98,172.94,6.47]
[1717689985038,45.0,172.97,172.94,6.47]
[1717689986949,45.0,172.97,172.9,2.0]
[1717689987259,45.0,172.97,172.94,6.47]
[1717689987941,45.0,172.97,172.95,6.47]
[1717689988143,45.0,172.97,172.94,6.47]
[1717689991429,45.0,172.97,172.9,2.0]
[1717689991754,51.03094969,172.97,172.93,6.47]
[1717689992875,51.03094969,172.97,172.9,2.0]
[1717689993378,51.03094969,172.97,172.93,6.47]
[1717689997344,51.03094969,172.97,172.94,6.47]
[1717689999365,53.17004969,172.97,172.9,2.0]
[1717689999548,2.1392,172.96,172.91,6.47]
[1717689999745,8.586,172.96,172.91,6.47]
[1717689999951,45.0,172.95,172.91,6.47]
[1717690000499,45.0,172.95,172.9,8.47]
[1717690001296,45.0,172.95,172.9,2.0]
[1717690001589,45.0,172.95,172.9,8.47]
[1717690001881,45.0,172.95,172.91,6.47]
[1717690002074,51.03196766,172.95,172.91,6.47]
[1717690002963,51.03196766,172.95,172.9,8.47]
[1717690003158,51.03196766,172.95,172.91,6.47]
[1717690003884,51.03196766,172.95,172.92,6.47]
[1717690006996,6.03196766,172.95,172.9,8.2609]
[1717690007224,2.1387,173.01,172.94,6.47]
[1717690007382,8.2314,173.02,172.97,6.47]
[1717690007685,2.139,172.98,172.93,6.47]
[1717690007861,6.47,173.0,172.93,6.47]
[1717690008062,2.1389,172.98,172.93,6.47]
[1717690008259,2.1388,172.99,172.94,6.47]
[1717690008681,47.1388,172.99,172.9,8.2609]
[1717690008884,47.1388,172.99,172.94,6.47]
[1717690011199,45.0,172.99,172.96,6.47]
[1717690011391,45.0,173.0,172.96,6.47]
[1717690011762,47.1387,173.0,172.9,8.2609]
[1717690011969,47.1387,173.0,172.95,6.47]
[1717690014480,45.0,173.0,172.9,8.2609]
[1717690014684,47.1387,173.0,172.95,6.47]
[1717690015394,45.0,173.0,172.95,6.47]
[1717690015601,47.1387,173.0,172.95,6.47]
[1717690016503,47.1387,173.0,172.9,8.2609]
[1717690016670,47.1387,173.0,172.95,6.47]
[1717690018090,2.1388,172.99,172.95,6.47]
[1717690018389,47.1388,172.99,172.93,6.47]
[1717690018597,6.02846537,172.98,172.93,6.47]
[1717690018780,45.0,172.97,172.93,6.47]
[1717690019786,45.0,172.97,172.9,8.2609]
[1717690019998,45.0,172.97,172.93,6.47]
[1717690020177,47.1391,172.97,172.9,8.2609]
[1717690020492,47.1391,172.97,172.92,6.47]
[1717690020702,2.1392,172.96,172.9,2.0]
[1717690020875,2.1392,172.96,172.9,8.47]
[1717690021574,0.17,172.95,172.9,8.47]
[1717690021770,15.1338,172.95,172.9,2.0]
[1717690022096,47.1394,172.94,172.9,2.0]
[1717690022275,45.0,172.94,172.9,2.0]
[1717690023594,12.9023,172.92,172.9,2.0]
[1717690023790,45.17,172.91,172.9,2.0]
[1717690023965,53.7421,172.91,172.9,2.0]
[1717690024172,53.9121,172.91,172.9,2.0]
[1717690024779,60.3821,172.91,172.9,2.0]
[1717690025673,76.8896,172.91,172.9,2.0]
[1717690025982,47.4798,172.91,172.9,2.0]
[1717690026378,47.3098,172.91,172.9,2.0]
[1717690026578,45.0,172.91,172.9,2.0]
[1717690026805,6.4659,172.96,172.9,2.0]
[1717690027002,6.4659,172.96,172.91,6.47]
[1717690027182,6.4659,172.96,172.9,8.47]
[1717690027392,8.6091,172.97,172.91,6.47]
[1717690028004,2.1391,172.97,172.92,6.47]
[1717690028305,2.1391,172.97,172.91,6.47]
[1717690028306,2.1392,172.96,172.91,6.47]
[1717690028677,47.1392,172.96,172.91,6.47]
[1717690028878,6.02833072,172.95,172.91,6.47]
[1717690029075,45.0,172.94,172.91,6.47]
[1717690030705,45.0,172.94,172.9,8.47]
[1717690032093,45.0,172.94,172.9,2.0]
[1717690034306,0.34,172.93,172.9,2.0]
[1717690034510,2.1398,172.91,172.9,2.0]
[1717690034707,47.4798,172.91,172.9,2.0]
[1717690035404,45.34,172.91,172.9,2.0]
[1717690035904,45.0,172.91,172.9,2.0]
[1717690038992,45.17,172.91,172.9,2.0]
[1717690039204,51.19192799,172.91,172.9,2.0]
[1717690039713,51.02192799,172.91,172.9,2.0]
[1717690061038,53.16172799,172.91,172.9,2.0]
[1717690061215,53.33172799,172.91,172.9,2.0]
[1717690064821,51.19192799,172.91,172.9,2.0]
[1717690065120,51.02192799,172.91,172.9,2.0]
[1717690065321,53.16172799,172.91,172.9,2.0]
[1717690065527,93.74632799,172.91,172.9,2.0]
[1717690065707,95.83562799,172.91,172.9,2.0]
[1717690065911,87.32682799,172.91,172.9,2.0]
[1717690066641,64.23012799,172.91,172.9,2.0]
[1717690066807,53.50172799,172.91,172.9,2.0]
[1717690067003,51.02192799,172.91,172.9,2.0]
[1717690067210,6.02192799,172.91,172.9,2.0]
[1717690067504,6.02192799,172.91,172.9,8.47]
[1717690068028,6.02192799,172.91,172.9,10.6099]
[1717690068226,6.02192799,172.91,172.9,8.47]
[1717690068418,6.02192799,172.91,172.9,2.0]
[1717690069329,51.02192799,172.91,172.9,2.0]
[1717690072753,6.02192799,172.91,172.9,10.6099]
[1717690072937,6.47,173.0,172.9,10.6099]
[1717690072938,12.94,173.0,172.9,14.6818]
[1717690073246,6.01815648,172.96,172.94,8.6094]
[1717690073546,2.1389,172.98,172.93,8.6095]
[1717690073927,6.02282236,172.96,172.93,8.6095]
[1717690074538,45.0,172.95,172.93,8.6095]
[1717690077322,45.0,172.95,172.94,6.47]
[1717690078544,45.0,172.95,172.93,2.1395]
[1717690079421,45.0,172.95,172.94,6.47]
[1717690081830,45.0,172.95,172.91,6.1779]
[1717690082035,45.0,172.95,172.94,6.47]
[1717690094762,45.0,172.95,172.9,2.0]
[1717690094950,45.0,172.95,172.93,6.47]
[1717690095446,51.02060456,172.95,172.93,6.47]
[1717690095673,2.1395,172.93,172.9,2.0]
[1717690095844,2.3094,172.94,172.9,2.0]
[1717690096045,2.1397,172.92,172.9,2.0]
[1717690096849,0.17,172.93,172.9,8.47]
[1717690097067,0.17,172.93,172.91,6.47]
[1717690097244,0.17,172.93,172.9,8.47]
[1717690099077,0.17,172.93,172.9,10.6099]
[1717690100264,2.3095,172.94,172.9,10.6099]
[1717690100265,0.17,172.94,172.9,10.6099]
[1717690100471,0.34,172.94,172.91,6.47]
[1717690100943,6.02060456,172.95,172.93,8.6094]
[1717690101146,6.02060456,172.95,172.94,8.6094]
[1717690103271,51.02060456,172.95,172.94,8.6094]
[1717690105684,2.1387,173.0,172.94,6.47]
[1717690105976,0.17,172.99,172.96,6.47]
[1717690106177,6.18738028,172.99,172.96,6.47]
[1717690106475,45.0,172.98,172.96,6.47]
[1717690108274,45.0,172.98,172.9,2.0]
[1717690108478,47.139,172.98,172.9,22.0]
[1717690108665,47.139,172.98,172.94,6.47]
[1717690108881,45.0,172.98,172.95,6.47]
[1717690109566,45.0,172.98,172.9,22.0]
[1717690109748,45.0,172.98,172.95,6.47]
[1717690110149,45.0,172.98,172.94,6.47]
[1717690110563,47.1389,172.98,172.94,6.47]
[1717690110760,2.3091,172.97,172.9,2.0]
[1717690110972,2.3091,172.97,172.93,6.47]
[1717690111183,2.1392,172.96,172.93,6.47]
[1717690111375,2.3091,172.97,172.93,6.47]
[1717690111675,2.3091,172.97,172.92,6.47]
[1717690111877,2.1392,172.96,172.92,6.47]
[1717690112178,2.1392,172.96,172.91,6.47]
[1717690112480,47.1392,172.96,172.91,6.47]
[1717690112705,45.0,172.96,172.9,2.0]
[1717690112867,45.0,172.96,172.94,6.47]
[1717690116187,45.0,172.96,172.9,2.0]
[1717690116493,51.01880701,172.96,172.93,6.47]
[1717690119075,0.34,172.95,172.9,2.0]
[1717690119277,2.4793,172.95,172.92,6.47]
[1717690119493,47.4793,172.95,172.91,6.47]
[1717690120077,47.4793,172.95,172.9,2.0]
[1717690120278,45.34,172.95,172.91,6.47]
[1717690120599,45.34,172.95,172.92,2.1396]
[1717690121397,47.4793,172.95,172.91,8.6097]
[1717690122375,45.34,172.95,172.92,2.1397]
[1717690122582,45.34,172.95,172.92,8.6097]
[1717690123190,45.34,172.95,172.92,2.1396]
[1717690123916,45.34,172.95,172.92,8.6096]
[1717690124589,45.34,172.95,172.93,2.1395]
[1717690124978,45.34,172.95,172.92,8.6096]
[1717690126588,45.0,172.95,172.92,8.6096]
[1717690126789,6.01890741,172.94,172.92,8.6096]
[1717690126982,45.0,172.93,172.92,8.6096]
[1717690129995,45.0,172.93,172.92,2.1396]
[1717690130201,45.0,172.93,172.92,8.6096]
[1717690130783,45.0,172.93,172.91,6.47]
[1717690131279,45.0,172.93,172.91,8.6098]
[1717690131892,45.0,172.93,172.92,6.47]
[1717690132379,45.0,172.93,172.91,8.6098]
[1717690133504,45.0,172.93,172.92,2.1397]
[1717690133696,45.0,172.93,172.91,8.6097]
[1717690134407,45.0,172.93,172.9,4.1399]
[1717690134602,45.0,172.93,172.91,8.6098]
[1717690136409,45.0,172.93,172.91,2.1398]
[1717690136801,45.0,172.93,172.9,10.6099]
[1717690137389,45.0,172.93,172.91,2.1398]
[1717690138306,45.0,172.93,172.92,8.6097]
[1717690138687,45.0,172.93,172.91,2.1397]
[1717690139085,45.0,172.93,172.92,6.47]
[1717690139288,45.0,172.93,172.9,4.1399]
[1717690139511,45.0,172.93,172.9,10.6099]
[1717690139688,45.0,172.93,172.9,4.1399]
[1717690139889,45.0,172.93,172.9,10.6099]
[1717690140409,6.01961069,172.92,172.9,10.6099]
[1717690140617,45.0,172.91,172.9,4.1399]
[1717690140811,45.0,172.91,172.9,10.6099]
[1717690149309,6.01961069,172.92,172.91,2.1398]
[1717690149502,51.01961069,172.92,172.91,8.6098]
[1717690157606,51.01961069,172.92,172.91,6.47]
[1717690157998,51.01961069,172.92,172.9,4.1398]
[1717690158201,51.01961069,172.92,172.91,6.47]
[1717690158423,51.01961069,172.92,172.9,10.6098]
[1717690158829,51.01961069,172.92,172.91,2.1398]
[1717690160713,51.01961069,172.92,172.9,10.6098]
[1717690161223,51.01961069,172.92,172.91,2.1398]
[1717690163013,51.01961069,172.92,172.9,4.1399]
[1717690163220,45.0,172.91,172.9,7.16781635]
[1717690164131,45.0,172.91,172.9,4.1399]
[1717690164834,45.0,172.91,172.9,10.6099]
[1717690165132,6.01961069,172.92,172.9,10.6099]
[1717690165133,6.01961069,172.92,172.91,2.1398]
[1717690165313,51.01961069,172.92,172.91,8.6098]
[1717690165826,51.01961069,172.92,172.91,2.1398]
[1717690171041,51.01961069,172.92,172.9,4.1398]
[1717690171219,45.0,172.91,172.9,4.1398]
[1717690173443,45.0,172.91,172.9,10.6098]
[1717690174720,2.139,172.98,172.9,2.0]
[1717690174931,2.1389,172.99,172.95,6.47]
[1717690175115,6.01929949,172.97,172.95,2.1393]
[1717690175317,6.01929949,172.97,172.93,8.6095]
[1717690175509,6.01929949,172.97,172.93,6.47]
[1717690175715,6.01929949,172.97,172.93,8.6095]
[1717690177035,45.0,172.96,172.93,8.6095]
[1717690177421,45.0,172.96,172.93,2.1395]
[1717690180834,45.0,172.96,172.93,2.1395]
[1717690181032,45.0,172.96,172.92,6.47]
[1717690181234,45.0,172.96,172.9,2.0]
[1717690181420,0.17,172.95,172.91,6.47]
[1717690181736,0.17,172.95,172.9,2.0]
[1717690181921,0.17,172.95,172.91,6.47]
[1717690184540,0.17,172.95,172.92,6.47]
[1717690184716,45.0,172.96,172.9,2.0]
[1717690184917,45.0,172.96,172.91,6.47]
[1717690185417,6.02120513,172.95,172.91,6.47]
[1717690185617,45.0,172.94,172.91,6.47]
[1717690185830,45.0,172.94,172.9,2.0]
[1717690186033,45.0,172.94,172.92,6.47]
[1717690190424,45.0,172.94,172.9,2.0]
[1717690190722,45.0,172.94,172.92,6.47]
[1717690191041,45.0,172.94,172.91,6.47]
[1717690191241,45.0,172.94,172.9,2.0]
[1717690193547,45.0,172.94,172.91,8.6097]
[1717690193841,45.0,172.94,172.92,2.1397]
[1717690194027,45.0,172.94,172.91,2.1397]
[1717690194620,0.17,172.93,172.9,10.6098]
[1717690194840,0.34,172.93,172.91,2.1398]
[1717690195234,0.34,172.93,172.9,10.6099]
[1717690195830,6.03614766,172.92,172.9,4.1399]
[1717690196032,45.0,172.91,172.9,4.1399]
[1717690198143,45.0,172.91,172.9,2.0]
[1717690199749,45.34,172.91,172.9,2.0]
[1717690200844,51.81,172.91,172.9,2.0]
[1717690201444,53.9498,172.91,172.9,2.0]
[1717690202444,51.81,172.91,172.9,2.0]
[1717690202852,45.34,172.91,172.9,2.0]
[1717690203033,47.4798,172.91,172.9,2.0]
[1717690203355,53.9498,172.91,172.9,2.0]
[1717690203544,45.34,172.91,172.9,2.0]
[1717690205346,69.9266,172.91,172.9,2.0]
[1717690205552,95.655,172.91,172.9,1.47012132]
[1717690205754,95.655,172.91,172.83,1.1273241]
[1717690205755,2.1405,172.86,172.83,1.1273241]
[1717690205961,0.34,172.85,172.83,1.1273241]
[1717690206471,8.51494849,172.85,172.83,1.1273241]
[1717690206966,45.0,172.84,172.83,1.1273241]
[1717690207176,45.34,172.84,172.83,1.1273241]
[1717690208146,45.0,172.84,172.83,1.1273241]
[1717690208350,45.0,172.84,172.83,7.5973241]
[1717690208653,45.0,172.84,172.83,9.7381241]
[1717690208843,45.0,172.84,172.83,14.0197241]
[1717690209040,6.03434849,172.85,172.84,6.4221]
[1717690209361,6.03434849,172.85,172.84,19.3575]
[1717690210840,6.03434849,172.85,172.84,12.8875]
[1717690211158,6.03434849,172.85,172.84,19.3575]
[1717690211568,1.79094849,172.85,172.84,35.7611]
[1717690211751,2.139,172.98,172.84,49.339]
[1717690211958,2.139,172.98,172.92,6.47]
[1717690212147,2.139,172.98,172.84,42.869]
[1717690212148,2.1391,172.97,172.84,42.869]
[1717690212351,2.1391,172.97,172.92,6.47]
[1717690212568,8.6091,172.97,172.91,6.47]
[1717690213067,2.1391,172.97,172.92,6.47]
[1717690213267,0.34,172.96,172.92,6.47]
[1717690213471,8.609,172.98,172.92,6.47]
[1717690213648,2.139,172.98,172.93,6.47]
[1717690213843,2.139,172.98,172.84,42.869]
[1717690214061,2.1389,172.99,172.89,6.47]
[1717690214255,2.1389,172.99,172.94,6.47]
[1717690214655,2.1389,172.98,172.85,120.0]
[1717690214955,2.1389,172.98,172.94,6.47]
[1717690215657,0.34,172.97,172.94,6.47]
[1717690216855,0.34,172.98,172.96,6.47]
[1717690217280,0.34,172.98,172.97,6.47]
[1717690217790,4.2763,173.05,172.97,6.47]
[1717690217959,2.1383,173.03,172.98,6.47]
[1717690218158,2.1383,173.03,172.9,23.0392]
[1717690218384,2.1383,173.03,172.98,6.47]
[1717690218567,2.1383,173.03,172.9,23.0392]
[1717690218568,2.1383,173.03,172.99,6.47]
[1717690219179,2.1383,173.04,172.99,6.47]
[1717690219377,2.1383,173.03,172.99,6.47]
[1717690219774,0.17,173.02,172.99,6.47]
[1717690220578,2.3085,173.02,172.99,6.47]
[1717690220780,0.17,173.01,172.99,6.47]
[1717690221085,0.34,173.02,172.98,6.47]
[1717690221775,0.34,173.02,172.9,23.0392]
[1717690222082,0.34,173.02,172.97,6.47]
[1717690222287,0.34,173.02,172.9,23.0392]
[1717690222467,0.34,173.02,172.97,6.47]
[1717690223187,0.34,173.02,172.9,23.0392]
[1717690223484,0.34,173.02,172.98,6.47]
[1717690225584,0.34,173.02,172.9,23.0392]
[1717690225585,0.34,173.02,172.99,6.47]
[1717690226479,0.34,173.02,172.9,23.0392]
[1717690226680,0.34,173.02,172.99,6.47]
[1717690226983,0.34,173.02,173.0,6.47]
[1717690227166,0.34,173.02,172.91,20.0]
[1717690227167,0.34,173.02,173.01,6.47]
[1717690229386,51.0310735,173.03,172.98,25.88]
[1717690230082,51.0310735,173.03,172.98,32.345]
[1717690230768,6.0310735,173.03,172.98,32.345]
[1717690230967,4.2758,173.07,172.98,32.345]
[1717690230968,2.138,173.06,172.98,32.345]
[1717690231174,2.138,173.06,173.04,6.47]
[1717690231479,2.138,173.06,172.98,32.345]
[1717690231480,6.03023699,173.05,173.03,6.47]
[1717690232181,45.17,173.04,173.03,6.47]
[1717690232681,45.0,173.04,173.03,6.47]
[1717690233884,8.16833699,173.05,173.03,6.47]
[1717690233885,6.03023699,173.05,173.03,6.47]
[1717690234191,2.1375,173.1,173.04,6.47]
[1717690234378,6.02908964,173.09,172.98,54.02186736]
[1717690234566,6.02908964,173.09,173.06,6.47]
[1717690234768,8.16668964,173.09,172.98,21.9029]
[1717690234968,2.1377,173.08,172.99,20.0]
[1717690235168,6.02908964,173.09,173.07,6.47]
[1717690235564,6.02908964,173.09,172.99,26.5296101]
[1717690235565,2.1377,173.08,172.99,26.5296101]
[1717690236076,8.16668964,173.09,173.06,6.47]
[1717690236486,45.0,173.08,173.06,6.47]
[1717690236692,0.17,173.07,172.99,26.5296101]
[1717690236979,0.17,173.07,173.06,6.47]
[1717690241096,45.0,173.08,173.06,6.47]
[1717690241398,6.02908964,173.09,173.07,6.47]
[1717690241595,6.02908964,173.09,172.99,20.0]
[1717690241596,4.2739,173.15,173.08,6.47]
[1717690241799,2.1371,173.13,173.09,6.47]
[1717690242100,2.137,173.14,173.1,6.47]
[1717690242303,2.1371,173.13,173.11,6.47]
[1717690242479,6.03219028,173.12,173.11,6.47]
[1717690242791,2.137,173.14,173.11,6.47]
[1717690242999,2.137,173.14,173.07,6.47]
[1717690243189,8.1674945,173.14,173.12,6.47]
[1717690244487,8.1674945,173.14,173.07,6.47]
[1717690244685,0.17,173.13,173.11,6.47]
[1717690245105,45.17,173.13,173.11,6.47]
[1717690245803,45.17,173.13,173.04,6.2653]
[1717690246005,45.17,173.13,173.1,6.47]
[1717690246006,45.0,173.13,173.1,6.47]
[1717690246207,45.0,173.13,173.11,6.47]
[1717690246505,45.0,173.13,173.12,6.47]
[1717690247209,45.17,173.13,173.07,25.88]
[1717690247706,45.17,173.13,173.1,6.47]
[1717690249305,45.17,173.13,173.11,6.47]
[1717690251708,45.0,173.13,173.11,6.47]
[1717690253289,45.0,173.13,173.07,25.88]
[1717690253797,45.0,173.13,173.11,6.47]
[1717690254710,45.0,173.13,173.04,6.2653]
[1717690255010,45.0,173.13,173.1,6.47]
[1717690255811,4.6145,173.12,172.99,6.3873]
[1717690256022,2.1375,173.1,172.99,6.3873]
[1717690256316,0.34,173.09,172.99,6.3873]
[1717690256811,0.34,173.09,173.07,6.47]
[1717690256997,0.34,173.1,173.07,6.47]
[1717690257890,0.34,173.1,172.99,6.3873]
[1717690258087,0.34,173.1,173.07,6.47]
[1717690260519,0.34,173.1,173.08,6.47]
[1717690261308,0.34,173.1,172.99,6.3873]
[1717690261613,2.4775,173.1,173.07,6.47]
[1717690261996,2.1376,173.09,172.99,6.3873]
[1717690262205,0.17,173.08,173.0,20.0]
[1717690262403,0.34,173.08,173.0,20.0]
[1717690262608,0.34,173.08,173.05,6.47]
[1717690263311,2.1375,173.1,173.05,6.47]
[1717690263312,0.34,173.09,173.05,6.47]
[1717690263491,2.1377,173.08,173.0,20.0]
[1717690263696,0.34,173.07,173.05,6.47]
[1717690264305,2.4777,173.08,173.05,6.47]
[1717690264606,0.34,173.08,173.05,6.47]
[1717690265014,0.34,173.09,173.06,6.47]
[1717690265213,0.34,173.1,173.06,6.47]
[1717690265420,2.4775,173.1,173.0,20.0]
[1717690265721,0.17,173.1,173.07,6.47]